Workbook

Sheet 1
B10: Примерное 7ми дневное меню для пришкольных лагерей на 2020 год.
A11: № рец | B11: Наименование блюд | C11: 7-10 лет | I11: 11-17 лет
C12: Выход | D12: Белки | E12: Жиры | F12: Угл-ды | G12: Ккал | H12: С (мг) | I12: Выход | J12: Белки | K12: Жиры | L12: Угл-ды | M12: Ккал | N12: С (мг)
A13: 1 день
A14: Завтрак:
A15: 181 | B15: Каша молочная манная с маслом | C15: 150/5 | D15: 4.66 | E15: 5.01 | F15: 8.00 | G15: 151.90 | H15: 0.89 | I15: 180/5 | J15: 6.01 | K15: 6.00 | L15: 15.00 | M15: 200.40 | N15: 1.07
A16: ПР | B16: Хлеб пшеничный | C16: 60 | D16: 4.7 | E16: 0.6 | F16: 29 | G16: 140.3 | H16: 0 | I16: 50 | J16: 4 | K16: 0.5 | L16: 24.2 | M16: 116.9 | N16: 0
A17: ПР | B17: Сыр | C17: 16 | D17: 4.95 | E17: 6.09 | F17: 0 | G17: 101.01 | H17: 0.15 | I17: 16 | J17: 4.95 | K17: 6.09 | L17: 0 | M17: 101.01 | N17: 0.15
A18: 338 | B18: Фрукты (яблоко, апельсин или банан) | C18: 180 | D18: 2.60 | E18: 2.60 | F18: 15.00 | G18: 187.10 | H18: 30.00 | I18: 150 | J18: 2.17 | K18: 2.17 | L18: 12.50 | M18: 155.92 | N18: 25.00
A19: 376 | B19: Чай с сахаром | C19: 200 | D19: 0.07 | E19: 0.02 | F19: 15 | G19: 60 | H19: 0.03 | I19: 200 | J19: 0.07 | K19: 0.02 | L19: 15 | M19: 60 | N19: 0.03
A20: Итого завтрак: | D20: =SUM(D15:D19) -> 16.98 | E20: 14.32 | F20: 67.00 | G20: 640.31 | H20: 31.07 | J20: =SUM(J15:J19) -> 17.20 | K20: 14.78 | L20: 66.70 | M20: 634.23 | N20: 26.25
A21: Обед:
A22: 101 | B22: Суп картофельный с рисовой крупой на к/б | C22: 250 | D22: 4 | E22: 14 | F22: 16.75 | G22: 165.75 | H22: 9.1 | I22: 250 | J22: 6 | K22: 16.4 | L22: 21.4 | M22: 185.75 | N22: 9.1
A23: 45 | B23: Салат из свежей капусты с растительным маслом | C23: 100 | D23: 1.31 | E23: 3.25 | F23: 6.27 | G23: 59.60 | H23: 18.85 | I23: 100 | J23: 1.31 | K23: 3.25 | L23: 6.27 | M23: 59.60 | N23: 18.85
A24: 128 | B24: Картофельное пюре | C24: 150 | D24: 11.4 | E24: 8.78 | F24: 56.09 | G24: 152.1 | H24: 0 | I24: 180 | J24: 12.8 | K24: 9.58 | L24: 59.5 | M24: 211.2 | N24: 0
A25: 229 | B25: Рыба, тушеная в томате с овощами | C25: 95/50 | D25: 10.5 | E25: 6.27 | F25: 4.81 | G25: 133 | H25: 4.72 | I25: 95/50 | J25: 10.5 | K25: 6.27 | L25: 4.81 | M25: 133 | N25: 4.72
A26: ПР | B26: Хлеб дарницкий | C26: 60 | D26: 3.4 | E26: 0.7 | F26: 29.6 | G26: 137.9 | H26: 0 | I26: 50 | J26: 2.83 | K26: 0.58 | L26: 24.67 | M26: 114.92 | N26: 0
A27: ПР | B27: Корж молочный | C27: 50 | D27: 2.75 | E27: 5.7 | F27: 8.53 | G27: 115.1 | H27: 0 | I27: 50 | J27: 2.75 | K27: 5.7 | L27: 8.53 | M27: 115.1 | N27: 0
A28: 356 | B28: Кисель фруктовый | C28: 200 | D28: 0.39 | E28: 0.1 | F28: 15.1 | G28: 119.2 | H28: 18.3 | I28: 200 | J28: 0.39 | K28: 0.1 | L28: 15.1 | M28: 119.2 | N28: 18.3
A29: Итого обед: | D29: =SUM(D22:D28) -> 33.75 | E29: 38.80 | F29: 137.15 | G29: 882.65 | H29: 50.97 | J29: =SUM(J22:J28) -> 36.58 | K29: 41.88 | L29: 140.28 | M29: 938.77 | N29: 50.97
A30: ИТОГО: | D30: =D20+D29 -> 50.73 | E30: 53.12 | F30: 204.15 | G30: 1522.96 | H30: 82.04 | J30: =J20+J29 -> 53.78 | K30: 56.66 | L30: 206.98 | M30: 1573.00 | N30: 77.22

Sheet 2
A1: № рец | B1: Наименование блюд | C1: 7-10 лет | I1: 11-17 лет
C2: Выход | D2: Белки | E2: Жиры | F2: Угл-ды | G2: Ккал | H2: С (мг) | I2: Выход | J2: Белки | K2: Жиры | L2: Угл-ды | M2: Ккал | N2: С (мг)
A3: 2 день
A4: Завтрак
A5: 223 | B5: Запеканка творожно-морковная с абрикосовым соусом | C5: 150/20 | D5: 14.36 | E5: 17.92 | F5: 25.67 | G5: 162.85 | H5: 1.95 | I5: 180/20 | J5: 17.23 | K5: 20.3 | L5: 33.4 | M5: 234.42 | N5: 2.34
A6: ПР | B6: Хлеб пшеничный | C6: 60 | D6: 4.7 | E6: 0.6 | F6: 29 | G6: 140.3 | H6: 0 | I6: 50 | J6: 4 | K6: 0.5 | L6: 24.2 | M6: 116.9 | N6: 0
A7: ПР | B7: Сыр | C7: 16 | D7: 4.95 | E7: 6.09 | F7: 0 | G7: 101.01 | H7: 0.15 | I7: 16 | J7: 4.95 | K7: 6.09 | L7: 0 | M7: 101.01 | N7: 0.15
A8: ПР | B8: Булочка Веснушка | C8: 50 | D8: 2.85 | E8: 6.8 | F8: 8.53 | G8: 134 | H8: 0 | I8: 50 | J8: 2.85 | K8: 6.8 | L8: 8.53 | M8: 134 | N8: 0
A9: 382 | B9: Какао на молоке | C9: 200 | D9: 4.08 | E9: 3.54 | F9: 65.50 | G9: 118.60 | H9: 1.59 | I9: 200 | J9: 4.08 | K9: 3.54 | L9: 65.50 | M9: 118.60 | N9: 1.59
A10: Итого завтрак: | D10: =SUM(D5:D9) -> 30.94 | E10: 34.95 | F10: 128.70 | G10: 656.76 | H10: 3.69 | J10: =SUM(J5:J9) -> 33.11 | K10: 37.23 | L10: 131.63 | M10: 704.93 | N10: 4.08
A11: Обед:
A12: 88 | B12: Щи из свежей капусты с картофелем на к/б | C12: 250 | D12: 12.56 | E12: 8.40 | F12: 15.40 | G12: 189.75 | H12: 15.78 | I12: 250 | J12: 12.56 | K12: 8.40 | L12: 15.40 | M12: 189.75 | N12: 15.78
A13: 52 | B13: Салат из свеклы с растительным маслом | C13: 100 | D13: 1.41 | E13: 6.01 | F13: 8.26 | G13: 92.8 | H13: 6.65 | I13: 100 | J13: 1.41 | K13: 6.01 | L13: 8.26 | M13: 92.8 | N13: 6.65
A14: 203 | B14: Макароны отварные с маслом | C14: 150/5 | D14: 5.66 | E14: 7.5 | F14: 31.92 | G14: 146.3 | H14: 0 | I14: 180/5 | J14: 6.25 | K14: 6.25 | L14: 33.15 | M14: 198.45 | N14: 0
A15: 243 | B15: Колбасные изделия отварные | C15: 95 | D15: 3.38 | E15: 4.67 | F15: 0.45 | G15: 128.45 | H15: 0.00 | I15: 95 | J15: 3.38 | K15: 4.67 | L15: 0.45 | M15: 128.45 | N15: 0.00
A16: ПР | B16: Хлеб дарницкий | C16: 60 | D16: 3.4 | E16: 0.7 | F16: 29.6 | G16: 137.9 | H16: 0 | I16: 50 | J16: 2.83 | K16: 0.58 | L16: 24.67 | M16: 114.92 | N16: 0
A17: 349 | B17: Компот из сухофрутов | C17: 200 | D17: 0.66 | E17: 1.50 | F17: 22.60 | G17: 132.80 | H17: 0.73 | I17: 200 | J17: 0.66 | K17: 1.50 | L17: 22.60 | M17: 132.80 | N17: 0.73
A18: Итого обед: | D18: =SUM(D12:D17) -> 27.07 | E18: 28.78 | F18: 108.23 | G18: 828.00 | H18: 23.16 | J18: =SUM(J12:J17) -> 27.09 | K18: 27.41 | L18: 104.53 | M18: 857.17 | N18: 23.16
A19: ИТОГО: | D19: =D10+D18 -> 58.01 | E19: 63.73 | F19: 236.93 | G19: 1484.76 | H19: 26.85 | J19: =J10+J18 -> 60.20 | K19: 64.64 | L19: 236.16 | M19: 1562.10 | N19: 27.24

Sheet 3
A1: № рец | B1: Наименование блюд | C1: 7-10 лет | I1: 11-17 лет
C2: Выход | D2: Белки | E2: Жиры | F2: Угл-ды | G2: Ккал | H2: С (мг) | I2: Выход | J2: Белки | K2: Жиры | L2: Угл-ды | M2: Ккал | N2: С (мг)
A3: 3 день
A4: Завтрак
A5: 210 | B5: Омлет натуральный | C5: 150 | D5: 10.28 | E5: 14.59 | F5: 4.81 | G5: 207.40 | H5: 0.27 | I5: 180 | J5: 13.13 | K5: 17.30 | L5: 16.78 | M5: 264.87 | N5: 0.32
A6: ПР | B6: Хлеб пшеничный | C6: 60 | D6: 4.7 | E6: 0.6 | F6: 29 | G6: 140.3 | H6: 0 | I6: 50 | J6: 4 | K6: 0.5 | L6: 24.2 | M6: 116.9 | N6: 0
A7: 338 | B7: Фрукты (яблоко, апельсин или банан) | C7: 180 | D7: 2.60 | E7: 2.60 | F7: 15.00 | G7: 187.10 | H7: 30.00 | I7: 150 | J7: 2.17 | K7: 2.17 | L7: 12.50 | M7: 155.92 | N7: 25.00
A8: 376 | B8: Чай с сахаром | C8: 200 | D8: 0.07 | E8: 0.02 | F8: 15 | G8: 60 | H8: 0.03 | I8: 200 | J8: 0.07 | K8: 0.02 | L8: 15 | M8: 60 | N8: 0.03
A9: Итого завтрак: | D9: =SUM(D5:D8) -> 17.65 | E9: 17.81 | F9: 63.81 | G9: 594.80 | H9: 30.30 | J9: =SUM(J5:J8) -> 19.37 | K9: 19.99 | L9: 68.48 | M9: 597.69 | N9: 25.35
A10: Обед:
A11: 96 | B11: Рассольник Ленинградский на к/б | C11: 250 | D11: 3.11 | E11: 2.53 | F11: 28.17 | G11: 177.25 | H11: 8.38 | I11: 250 | J11: 3.11 | K11: 2.53 | L11: 28.17 | M11: 177.25 | N11: 8.38
A12: 67 | B12: Винегрет овощной | C12: 100 | D12: 1.4 | E12: 6.04 | F12: 7.29 | G12: 125.1 | H12: 9.63 | I12: 100 | J12: 1.4 | K12: 6.04 | L12: 7.29 | M12: 125.1 | N12: 9.63
A13: 290 | B13: Картофель тушеный с курицей | C13: 150/95 | D13: 18.45 | E13: 19.47 | F13: 31.02 | G13: 204.8 | H13: 12.3 | I13: 180/95 | J13: 22.45 | K13: 23.96 | L13: 48.6 | M13: 296.96 | N13: 13.8
A14: ПР | B14: Хлеб дарницкий | C14: 60 | D14: 3.4 | E14: 0.7 | F14: 29.6 | G14: 137.9 | H14: 0 | I14: 50 | J14: 2.83 | K14: 0.58 | L14: 24.67 | M14: 114.92 | N14: 0
A15: 356 | B15: Кисель фруктовый | C15: 200 | D15: 0.39 | E15: 0.1 | F15: 15.1 | G15: 119.2 | H15: 18.3 | I15: 200 | J15: 0.39 | K15: 0.1 | L15: 15.1 | M15: 119.2 | N15: 18.3
A16: Итого обед: | D16: =SUM(D11:D15) -> 26.75 | E16: =SUM(E11:E15) -> 28.84 | F16: =SUM(F11:F15) -> 111.18 | G16: =SUM(G11:G15) -> 764.25 | H16: =SUM(H11:H15) -> 48.61 | J16: =SUM(J11:J15) -> 30.18 | K16: =SUM(K11:K15) -> 33.21 | L16: =SUM(L11:L15) -> 123.83 | M16: =SUM(M11:M15) -> 833.43 | N16: =SUM(N11:N15) -> 50.11
A17: ИТОГО: | D17: =D9+D16 -> 44.40 | E17: =E9+E16 -> 46.65 | F17: =F9+F16 -> 174.99 | G17: =G9+G16 -> 1359.05 | H17: =H9+H16 -> 78.91 | J17: =J9+J16 -> 49.55 | K17: =K9+K16 -> 53.20 | L17: =L9+L16 -> 192.31 | M17: =M9+M16 -> 1431.12 | N17: =N9+N16 -> 75.46

Sheet 4
A1: № рец | B1: Наименование блюд | C1: 7-10 лет | I1: 11-17 лет
C2: Выход | D2: Белки | E2: Жиры | F2: Угл-ды | G2: Ккал | H2: С (мг) | I2: Выход | J2: Белки | K2: Жиры | L2: Угл-ды | M2: Ккал | N2: С (мг)
A3: 4 день
A4: Завтрак
A5: 194 | B5: Плов с изюмом | C5: 150 | D5: 12.1 | E5: 17.2 | F5: 11.82 | G5: 166 | H5: 0.81 | I5: 180 | J5: 13.5 | K5: 18.24 | L5: 16.18 | M5: 237 | N5: 0.97
A6: ПР | B6: Хлеб пшеничный | C6: 60 | D6: 4.7 | E6: 0.6 | F6: 29 | G6: 140.3 | H6: 0 | I6: 50 | J6: 4 | K6: 0.5 | L6: 24.2 | M6: 116.9 | N6: 0
A7: ПР | B7: Плюшка Московская | C7: 50 | D7: 3.6 | E7: 3.1 | F7: 25.5 | G7: 158.5 | H7: 0 | I7: 50 | J7: 3.6 | K7: 3.1 | L7: 25.5 | M7: 158.5 | N7: 0
A8: 378 | B8: Чай с сахаром, с молоком | C8: 200 | D8: 1.52 | E8: 1.35 | F8: 15.9 | G8: 109.28 | H8: 1.33 | I8: 200 | J8: 1.52 | K8: 1.35 | L8: 15.9 | M8: 109.28 | N8: 1.33
A9: Итого завтрак: | D9: =SUM(D5:D8) -> 21.92 | E9: 22.25 | F9: 82.22 | G9: 574.08 | H9: 2.14 | J9: =SUM(J5:J8) -> 22.62 | K9: 23.19 | L9: 81.78 | M9: 621.68 | N9: 2.30
A10: Обед:
A11: 81 | B11: Борщ с капустой и картофелем на к/б | C11: 250 | D11: 1.98 | E11: 13.4 | F11: 28.18 | G11: 183.75 | H11: 10.68 | I11: 250 | J11: 1.98 | K11: 13.4 | L11: 28.18 | M11: 183.75 | N11: 10.68
A12: 62 | B12: Салат из моркови, с растительным маслом | C12: 100 | D12: 1.23 | E12: 0.09 | F12: 11.48 | G12: 39.9 | H12: 3.36 | I12: 100 | J12: 1.23 | K12: 0.09 | L12: 11.48 | M12: 39.9 | N12: 3.36
A13: 199 | B13: Гороховое пюре с маслом | C13: 150/5 | D13: 13.42 | E13: 6.75 | F13: 34.47 | G13: 123.4 | H13: 0 | I13: 180/5 | J13: 16.1 | K13: 8.1 | L13: 41.36 | M13: 183.8 | N13: 0
A14: 268 | B14: Котлета из говядины | C14: 95 | D14: 15.5 | E14: 21.9 | F14: 41.28 | G14: 234.55 | H14: 0.29 | I14: 95 | J14: 15.5 | K14: 21.9 | L14: 41.28 | M14: 234.55 | N14: 0.29
A15: ПР | B15: Хлеб дарницкий | C15: 60 | D15: 3.4 | E15: 0.7 | F15: 29.6 | G15: 137.9 | H15: 0 | I15: 50 | J15: 2.83 | K15: 0.58 | L15: 24.67 | M15: 114.92 | N15: 0
A16: 389 | B16: Сок фруктовый | C16: 200 | D16: 5 | E16: 0 | F16: 20.2 | G16: 84.8 | H16: 4 | I16: 200 | J16: 5 | K16: 0 | L16: 20.2 | M16: 84.8 | N16: 4
A17: Итого обед: | D17: =SUM(D11:D16) -> 40.53 | E17: 42.84 | F17: 165.21 | G17: 804.30 | H17: 18.33 | J17: =SUM(J11:J16) -> 42.64 | K17: 44.07 | L17: 167.17 | M17: 841.72 | N17: 18.33
A18: ИТОГО: | D18: =D9+D17 -> 62.45 | E18: 65.09 | F18: 247.43 | G18: 1378.38 | H18: 20.47 | J18: =J9+J17 -> 65.26 | K18: 67.26 | L18: 248.95 | M18: 1463.40 | N18: 20.63

Sheet 5
A1: № рец | B1: Наименование блюд | C1: 7-10 лет | I1: 11-17 лет
C2: Выход | D2: Белки | E2: Жиры | F2: Угл-ды | G2: Ккал | H2: С (мг) | I2: Выход | J2: Белки | K2: Жиры | L2: Угл-ды | M2: Ккал | N2: С (мг)
A3: 5 день
A4: Завтрак
A5: 175 | B5: Каша молочная "Дружба" с маслом | C5: 150/5 | D5: 8.63 | E5: 14.52 | F5: 16.50 | G5: 154.00 | H5: 0.73 | I5: 180/5 | J5: 10.00 | K5: 15.22 | L5: 26.00 | M5: 221.80 | N5: 0.88
A6: ПР | B6: Хлеб пшеничный | C6: 60 | D6: 4.7 | E6: 0.6 | F6: 29 | G6: 140.3 | H6: 0 | I6: 50 | J6: 4 | K6: 0.5 | L6: 24.2 | M6: 116.9 | N6: 0
A7: 382 | B7: Какао на молоке | C7: 200 | D7: 4.08 | E7: 3.54 | F7: 16.50 | G7: 118.60 | H7: 1.59 | I7: 200 | J7: 4.08 | K7: 3.54 | L7: 16.50 | M7: 118.60 | N7: 1.59
A8: 338 | B8: Фрукты (яблоко, апельсин или банан) | C8: 180 | D8: 2.60 | E8: 2.60 | F8: 15.00 | G8: 187.10 | H8: 30.00 | I8: 150 | J8: 2.17 | K8: 2.17 | L8: 12.50 | M8: 155.92 | N8: 25.00
A9: Итого завтрак: | D9: =SUM(D5:D8) -> 20.01 | E9: 21.26 | F9: 77.00 | G9: 600.00 | H9: 32.32 | J9: =SUM(J5:J8) -> 20.25 | K9: 21.43 | L9: 79.20 | M9: 613.22 | N9: 27.47
A10: Обед:
A11: 103 | B11: Суп с картофельный с макаронными изделиями на к/б | C11: 250 | D11: 0.16 | E11: 6.78 | F11: 22.47 | G11: 138.25 | H11: 8.25 | I11: 250 | J11: 0.16 | K11: 6.78 | L11: 22.47 | M11: 138.25 | N11: 8.25
A12: 45 | B12: Салат из свежей капусты с растительным маслом | C12: 100 | D12: 1.31 | E12: 3.25 | F12: 6.27 | G12: 59.60 | H12: 18.85 | I12: 100 | J12: 1.31 | K12: 3.25 | L12: 6.27 | M12: 59.60 | N12: 18.85
A13: 128 | B13: Картофельное пюре с маслом | C13: 150/5 | D13: 16.40 | E13: 8.78 | F13: 56.09 | G13: 132.10 | H13: 0.00 | I13: 180/5 | J13: 17.85 | K13: 8.13 | L13: 59.50 | M13: 211.20 | N13: 0.00
A14: 234 | B14: Биточки рыбные | C14: 95 | D14: 15.28 | E14: 16.55 | F14: 12.27 | G14: 230.46 | H14: 0.36 | I14: 95 | J14: 15.28 | K14: 16.55 | L14: 12.27 | M14: 230.46 | N14: 0.36
A15: ПР | B15: Хлеб дарницкий | C15: 60 | D15: 3.4 | E15: 0.7 | F15: 29.6 | G15: 137.9 | H15: 0 | I15: 50 | J15: 2.83 | K15: 0.58 | L15: 24.67 | M15: 114.92 | N15: 0
A16: 349 | B16: Компот из сухофрутов | C16: 200 | D16: 0.66 | E16: 1.50 | F16: 22.60 | G16: 132.80 | H16: 0.73 | I16: 200 | J16: 0.66 | K16: 1.50 | L16: 22.60 | M16: 132.80 | N16: 0.73
A17: Итого обед: | D17: =SUM(D11:D16) -> 37.21 | E17: 37.56 | F17: 149.30 | G17: 831.11 | H17: 28.19 | J17: =SUM(J11:J16) -> 38.09 | K17: 36.79 | L17: 147.78 | M17: 887.23 | N17: 28.19
A18: ИТОГО: | D18: =D9+D17 -> 57.22 | E18: 58.82 | F18: 226.30 | G18: 1431.11 | H18: 60.51 | J18: =J9+J17 -> 58.34 | K18: 58.22 | L18: 226.98 | M18: 1500.45 | N18: 55.66

Sheet 6
A1: № рец | B1: Наименование блюд | C1: 7-10 лет | I1: 11-17 лет
C2: Выход | D2: Белки | E2: Жиры | F2: Угл-ды | G2: Ккал | H2: С (мг) | I2: Выход | J2: Белки | K2: Жиры | L2: Угл-ды | M2: Ккал | N2: С (мг)
A3: 6 день
A4: Завтрак
A5: 173 | B5: Каша молочная ячневая с маслом | C5: 150/5 | D5: 9.58 | E5: 14.43 | F5: 17.77 | G5: 134.6 | H5: 0.73 | I5: 180/5 | J5: 10.4 | K5: 13.54 | L5: 26.52 | M5: 208.6 | N5: 0.88
A6: ПР | B6: Сыр | C6: 16 | D6: 4.95 | E6: 6.09 | F6: 0 | G6: 101.01 | H6: 0.15 | I6: 16 | J6: 4.95 | K6: 6.09 | L6: 0 | M6: 101.01 | N6: 0.15
A7: ПР | B7: Хлеб пшеничный | C7: 60 | D7: 4.7 | E7: 0.6 | F7: 29 | G7: 140.3 | H7: 0 | I7: 50 | J7: 4 | K7: 0.5 | L7: 24.2 | M7: 116.9 | N7: 0
A8: ПР | B8: Булочка домашняя | C8: 50 | D8: 3.6 | E8: 3.1 | F8: 25.5 | G8: 138.5 | H8: 0 | I8: 50 | J8: 3.6 | K8: 3.1 | L8: 25.5 | M8: 138.5 | N8: 0
A9: 376 | B9: Чай с сахаром | C9: 200 | D9: 0.07 | E9: 0.02 | F9: 15 | G9: 60 | H9: 0.03 | I9: 200 | J9: 0.07 | K9: 0.02 | L9: 15 | M9: 60 | N9: 0.03
A10: Итого завтрак: | D10: =SUM(D5:D9) -> 22.90 | E10: 24.24 | F10: 87.27 | G10: 574.41 | H10: 0.91 | J10: =SUM(J5:J9) -> 23.02 | K10: 23.25 | L10: 91.22 | M10: 625.01 | N10: 1.06
A11: Обед:
A12: 88 | B12: Щи из свежей капусты с картофелем на к/б | C12: 250 | D12: 9.56 | E12: 13.40 | F12: 32.40 | G12: 139.75 | H12: 15.78 | I12: 250 | J12: 9.56 | K12: 13.40 | L12: 32.40 | M12: 139.75 | N12: 15.78
A13: 67 | B13: Винегрет овощной | C13: 100 | D13: 1.4 | E13: 6.04 | F13: 7.29 | G13: 125.1 | H13: 9.63 | I13: 100 | J13: 1.4 | K13: 6.04 | L13: 7.29 | M13: 125.1 | N13: 9.63
A14: 279 | B14: Тефтели говяжьи со сметанно-томатным соусом | C14: 95/50 | D14: 8.63 | E14: 8.91 | F14: 2.89 | G14: 201.4 | H14: 0 | I14: 95/50 | J14: 8.63 | K14: 8.91 | L14: 2.89 | M14: 201.4 | N14: 0
A15: 171 | B15: Каша перловая рассыпчатая | C15: 150 | D15: 11.4 | E15: 8.78 | F15: 56.09 | G15: 66.25 | H15: 0 | I15: 180 | J15: 13.8 | K15: 9.5 | L15: 66.54 | M15: 138.45 | N15: 0
A16: ПР | B16: Хлеб дарницкий | C16: 60 | D16: 3.4 | E16: 0.7 | F16: 29.6 | G16: 137.9 | H16: 0 | I16: 50 | J16: 2.83 | K16: 0.58 | L16: 24.67 | M16: 114.92 | N16: 0
A17: 356 | B17: Кисель фруктовый | C17: 200 | D17: 0.39 | E17: 0.1 | F17: 15.1 | G17: 119.2 | H17: 18.3 | I17: 200 | J17: 0.39 | K17: 0.1 | L17: 15.1 | M17: 119.2 | N17: 18.3
A18: Итого обед: | D18: =SUM(D12:D17) -> 34.78 | E18: 37.93 | F18: 143.37 | G18: 789.60 | H18: 43.71 | J18: =SUM(J12:J17) -> 36.61 | K18: 38.53 | L18: 148.89 | M18: 838.82 | N18: 43.71
A19: ИТОГО: | D19: =D10+D18 -> 57.68 | E19: 62.17 | F19: 230.64 | G19: 1364.01 | H19: 44.62 | J19: =J10+J18 -> 59.63 | K19: 61.78 | L19: 240.11 | M19: 1463.83 | N19: 44.77

Sheet 7
A1: № рец | B1: Наименование блюд | C1: 7-10 лет | I1: 11-17 лет
C2: Выход | D2: Белки | E2: Жиры | F2: Угл-ды | G2: Ккал | H2: С (мг) | I2: Выход | J2: Белки | K2: Жиры | L2: Угл-ды | M2: Ккал | N2: С (мг)
A3: 7 день
A4: Завтрак
A5: 181 | B5: Каша молочная манная с маслом | C5: 150/5 | D5: 4.66 | E5: 9.01 | F5: 15.10 | G5: 211.90 | H5: 0.89 | I5: 180/5 | J5: 5.59 | K5: 6.54 | L5: 19.50 | M5: 240.80 | N5: 1.07
A6: ПР | B6: Хлеб пшеничный | C6: 60 | D6: 4.7 | E6: 0.6 | F6: 29 | G6: 140.3 | H6: 0 | I6: 50 | J6: 4 | K6: 0.5 | L6: 24.2 | M6: 116.9 | N6: 0
A7: ПР | B7: Пирожок с яблоком | C7: 50 | D7: 2.75 | E7: 5.7 | F7: 8.53 | G7: 115.1 | H7: 0 | I7: 50 | J7: 2.75 | K7: 5.7 | L7: 8.53 | M7: 115.1 | N7: 0
A8: ПР | B8: Сыр | C8: 16 | D8: 4.95 | E8: 6.09 | F8: 0 | G8: 101.01 | H8: 0.15 | I8: 16 | J8: 4.95 | K8: 6.09 | L8: 0 | M8: 101.01 | N8: 0.15
A9: 378 | B9: Чай с сахаром, с молоком | C9: 200 | D9: 1.52 | E9: 1.35 | F9: 15.9 | G9: 109.28 | H9: 1.33 | I9: 200 | J9: 1.52 | K9: 1.35 | L9: 15.9 | M9: 109.28 | N9: 1.33
A10: Итого завтрак: | D10: =SUM(D5:D9) -> 18.58 | E10: 22.75 | F10: 68.53 | G10: 677.59 | H10: 2.37 | J10: =SUM(J5:J9) -> 18.81 | K10: 20.18 | L10: 68.13 | M10: 683.09 | N10: 2.55
A11: Обед:
A12: 102 | B12: Суп картофельный с горохом на к/б | C12: 250 | D12: 11.73 | E12: 17.26 | F12: 26.5 | G12: 175.4 | H12: 5.83 | I12: 250 | J12: 11.73 | K12: 17.26 | L12: 28.5 | M12: 175.4 | N12: 5.83
A13: 52 | B13: Салат из свеклы с растительным маслом | C13: 100 | D13: 1.41 | E13: 6.01 | F13: 8.26 | G13: 92.8 | H13: 6.65 | I13: 100 | J13: 1.41 | K13: 6.01 | L13: 8.26 | M13: 92.8 | N13: 6.65
A14: 291 | B14: Плов из птицы | C14: 150/95 | D14: 13.38 | E14: 7.14 | F14: 38.42 | G14: 195.1 | H14: 0 | I14: 180/95 | J14: 16.8 | K14: 8.55 | L14: 43.8 | M14: 297.8 | N14: 0
A15: ПР | B15: Хлеб дарницкий | C15: 60 | D15: 3.4 | E15: 0.7 | F15: 29.6 | G15: 137.9 | H15: 0 | I15: 50 | J15: 2.83 | K15: 0.58 | L15: 24.67 | M15: 114.92 | N15: 0
A16: 349 | B16: Компот из сухофрутов | C16: 200 | D16: 0.66 | E16: 1.5 | F16: 22.6 | G16: 132.8 | H16: 0.73 | I16: 200 | J16: 0.66 | K16: 1.5 | L16: 22.6 | M16: 132.8 | N16: 0.73
A17: 338 | B17: Фрукты (яблоко, апельсин или банан) | C17: 180 | D17: 2.60 | E17: 2.60 | F17: 15.00 | G17: 187.10 | H17: 30.00 | I17: 150 | J17: 2.17 | K17: 2.17 | L17: 12.50 | M17: 155.92 | N17: 25.00
A18: Итого обед: | D18: =SUM(D12:D17) -> 33.18 | E18: 35.21 | F18: 140.38 | G18: 921.10 | H18: 43.21 | J18: =SUM(J12:J17) -> 35.60 | K18: 36.07 | L18: 140.33 | M18: 969.64 | N18: 38.21
A19: ИТОГО: | D19: =D10+D18 -> 51.76 | E19: 57.96 | F19: 208.91 | G19: 1598.69 | H19: 45.58 | J19: =J10+J18 -> 54.41 | K19: 56.25 | L19: 208.46 | M19: 1652.73 | N19: 40.76
